Cogmind - Beta 9.2 @@@ ROGUE MODE // 2019.11.12 @ 20:57:56 Player: fartblaster Result: Destroyed by G-47 Trooper with Particle Gun Performance ------------- Evolutions (0) 0 Regions Visited (1) 200 Robots Destroyed (22) 110 Value Destroyed (523) 523 Prototype IDs (0) 0 Alien Tech Used (0) 0 Bonus (0) 0 TOTAL SCORE: 833 Bonus ------- None Cogmind --------- Core Integrity 0/250 Matter 300/300 Energy 160/160 System Corruption 0% Temperature Cool (9) Movement Walking (150) Ox1 Location -10/Materials Parts ------- > --- POWER (1) -------- Light Nuclear Core > --- PROPULSION (2) --- Aluminum Leg Aluminum Leg > --- UTILITY (2) ------ Large Storage Unit Sensor Array > --- WEAPON (2) ------- EM Pulse Gun > --- INVENTORY (10) --- Aluminum Leg Aluminum Leg Aluminum Leg High-capacity Matter Pod (200) Signal Interpreter Hacking Suite Grenade Launcher Peak State ------------ > --- POWER ------------ Light Nuclear Core > --- PROPULSION ------- Aluminum Leg Aluminum Leg > --- UTILITY ---------- Large Storage Unit Sensor Array > --- WEAPON ----------- EM Pulse Gun Welding Torch > --- INVENTORY -------- Aluminum Leg Aluminum Leg Aluminum Leg High-capacity Matter Pod Signal Interpreter Hacking Suite Grenade Launcher [Rating: 9] Favorites ----------- Power Ion Engine Engine Ion Engine Power Core Light Nuclear Core Propulsion Aluminum Leg Leg Aluminum Leg Utility Sensor Array Device Sensor Array Storage Small Storage Unit Weapon Light Assault Rifle Energy Gun Medium Laser Ballistic Gun Light Assault Rifle Ballistic Cannon Light Cannon Special Weapon Welding Torch Special Melee Weapon Datajack Build | -11 -10 ------- Run | Scr Mat Slots Evolved . | . . Power . | . . Propulsion . | . . Utility . | . . Weapon . | . . Parts Attached 26 | 6 20 Power 3 | 1 2 Engine 2 | 1 1 Core 1 | . 1 Reactor . | . . Propulsion 9 | 2 7 Treads . | . . Leg 9 | 2 7 Wheel . | . . Hover . | . . Flight . | . . Utility 3 | 1 2 Device 1 | . 1 Storage 2 | 1 1 Processor . | . . Hackware . | . . Protection . | . . Artifact . | . . Weapon 11 | 2 9 Energy Gun 5 | 1 4 Energy Cannon . | . . Ballistic Gun 3 | 1 2 Ballistic Cannon 1 | . 1 Launcher . | . . Special Weapon 1 | . 1 Impact Weapon . | . . Slashing Weapon . | . . Piercing Weapon . | . . Special Melee Weapon 1 | . 1 Unidentified Prototypes . | . . Parts Lost 12 | . 12 Power 2 | . 2 Propulsion 2 | . 2 Utility . | . . Weapon 8 | . 8 Highest Loss Streak 6 | . 6 Average Slot Usage (%) 89 | . 89 Engine 6 | . 6 Core 2 | . 2 Leg 27 | . 27 Device 12 | . 12 Storage 14 | . 14 Energy Gun 10 | . 10 Ballistic Gun 6 | . 6 Ballistic Cannon 1 | . 1 Special Weapon 4 | . 4 Naked Turns . | . . Heaviest Build 25 | 12 25 Greatest Support 20 | 20 20 Greatest Overweight (x) 1 | . 1 Average Overweight (x) . | . . Largest Inventory Capacity 10 | 6 10 Average Capacity 6 | 5 7 Most Carried 8 | 1 8 Average Carried 5 | . 5 Final Capacity 10 | 6 10 Final Carried 7 | 1 7 Class Distribution -------------------- 85% | Mutant 14% | Scavenger-Mutant Dominant Class ---------------- Mutant | -10/Materials Resources | -11 -10 ----------- Run | Scr Mat Matter Collected 767 | 235 532 Remotely . | . . Salvage Created 734 | . 734 Parts 49 | . 49 Haulers Intercepted . | . . Recyclers Shooed 1 | . 1 Parts Field Recycled . | . . Retrieved Matter . | . . Parts Self-Destructed . | . . Prevented . | . . Kills | -11 -10 ------- Run | Scr Mat Combat Hostiles Destroyed 15 | . 15 Guns 13 | . 13 Cannons 2 | . 2 Classes Destroyed 6 | . 6 Worker 3 | . 3 Builder 1 | . 1 Recycler 1 | . 1 Watcher 2 | . 2 Swarmer 3 | . 3 Grunt 12 | . 12 Best Kill Streak 4 | . 4 Combat Bots Only 3 | . 3 Max Kills in Single Turn 1 | . 1 Gunslinging . | . . Exploded . | . . Melee . | . . Uniques/NPCs Destroyed . | . . Combat | -11 -10 -------- Run | Scr Mat Damage Taken 1394 | . 1394 Core 256 | . 256 Absorbed by Shields . | . . Core Remaining (%) 100 | 100 . Volleys Fired 97 | 3 94 Largest 2 | 2 2 Hottest 100 | 70 100 Shots Fired 146 | 5 141 Gun 122 | 5 117 Cannon 24 | . 24 Launcher . | . . Special . | . . Kinetic 96 | 2 94 Thermal 33 | 3 30 Explosive . | . . Electromagnetic 17 | . 17 Robot Hit Streak 9 | 2 9 Robot Miss Streak 5 | 1 5 Penetration Max . | . . Secondary Targets 1 | . 1 Max Gunslinging Chain 1 | . 1 Shots Hit Robots 79 | 3 76 Core Hits 39 | 1 38 Critical Hits 2 | . 2 Critical Kills 1 | . 1 Critical Parts Destroyed 1 | . 1 Melee Attacks 1 | . 1 Impact . | . . Slashing . | . . Piercing . | . . Sneak Attacks . | . . Combat Hostiles . | . . Follow-up Attacks . | . . Damage Inflicted 870 | 22 848 Guns 627 | 22 605 Cannons 216 | . 216 Explosions . | . . Melee . | . . Ramming 27 | . 27 Kinetic 494 | 10 484 Thermal 175 | 12 163 Explosive . | . . Electromagnetic 174 | . 174 Impact . | . . Slashing . | . . Piercing . | . . Highest Corruption . | . . Average Corruption . | . . Corruption Purged . | . . Overload Shots . | . . Overflow Damage . | . . Projectiles . | . . Explosions . | . . Melee . | . . Knockbacks 4 | . 4 Impact . | . . Kinetic 4 | . 4 Secondary . | . . Self-Inflicted Damage 8 | . 8 Shots . | . . Rammed 4 | . 4 Targets Rammed 5 | . 5 Kicked 1 | . 1 Crushed . | . . Highest Temperature 156 | 20 156 Average Temperature 31 | 15 32 Received Heat Transfer 678 | . 678 Siege Activations . | . . Robots Corrupted . | . . Combat Hostiles . | . . Parts Fried . | . . Impact Corruptions . | . . Robots Melted . | . . Combat Hostiles . | . . Parts Melted . | . . Heat Transferred 483 | 37 446 Parts Sabotaged . | . . Parts Stolen . | . . Parts Stripped . | . . Power Chain Reactions . | . . Missiles Intercepted . | . . Alert | -11 -10 ------- Run | Scr Mat Peak Influence 160 | . 160 Average Influence 38 | . 40 Maximum Alert Level . | . . Low Security (%) 100 | 100 100 Level 1 . | . . Level 2 . | . . Level 3 . | . . Level 4 . | . . Level 5 . | . . High Security . | . . Max Security . | . . Squads Dispatched 3 | . 3 Investigation 2 | . 2 Extermination . | . . Reinforcement 1 | . 1 Assault . | . . Garrison . | . . Intercept . | . . Construction Impeded . | . . Haulers Reinforced . | . . Stealth | -11 -10 --------- Run | Scr Mat Distress Signals 1 | . 1 Communications Jammed . | . . Distress Signals . | . . Times Spotted 27 | . 27 Peak Tracking Total 4 | . 4 Tactical Retreats 3 | . 3 Traps | -11 -10 ------- Run | Scr Mat Traps Triggered 3 | . 3 Indirectly . | . . Trap Hack Attempts . | . . Triggered . | . . Disarmed . | . . Reprogrammed . | . . Reused . | . . Traps Extracted . | . . Installed . | . . Triggered . | . . Machines | -11 -10 ---------- Run | Scr Mat Machines Disabled . | . . Max in Single Turn . | . . Machines Sabotaged . | . . Garrisons Compromised . | . . Overloaded Fab Kills . | . . Fab Network Shutdowns . | . . Hacking | -11 -10 --------- Run | Scr Mat Machines Accessed . | . . Terminals . | . . Fabricators . | . . Repair Stations . | . . Recycling Units . | . . Scanalyzers . | . . Garrison Access . | . . Total Hacks . | . . Successful . | . . Failed . | . . Catastrophic . | . . Database Lockouts . | . . Manual . | . . Terminals . | . . Fabricators . | . . Repair Stations . | . . Recycling Units . | . . Scanalyzers . | . . Garrison Access . | . . Terminal Hacks . | . . Fabricator Hacks . | . . Repair Station Hacks . | . . Recycling Unit Hacks . | . . Scanalyzer . | . . Garrison Access Hacks . | . . Unauthorized Hacks . | . . Terminals . | . . Fabricators . | . . Repair Stations . | . . Recycling Units . | . . Scanalyzers . | . . Garrison Access . | . . Data Cores Recovered . | . . Used . | . . Hacking Detections . | . . Full Trace Events . | . . Feedback Events . | . . Feedback Blocked . | . . Robot Schematics Acquired . | . . Robots Built . | . . Matter . | . . Time . | . . Total Robot Build Rating . | . . Part Schematics Acquired . | . . Parts Built . | . . Matter . | . . Time . | . . Total Part Build Rating . | . . Parts Repaired . | . . Time . | . . Parts Recycled . | . . Recycled Matter . | . . Retrieved Matter . | . . Retrieved Components . | . . Parts Scanalyzed . | . . Part Schematics Acquired . | . . Parts Damaged . | . . Bothacking | -11 -10 ------------ Run | Scr Mat Used RIF Installer . | . . Robots Hacked 1 | . 1 Non-combat . | . . Combat 1 | . 1 Robot Hacks Applied 1 | . 1 parse_system 1 | . 1 Relay Couplers Released . | . . Robots Rewired . | . . Allies Hacked . | . . Hacks Repelled . | . . Allies | -11 -10 -------- Run | Scr Mat Total Allies . | . . Largest Group . | . . Highest-Rated Group . | . . Highest-Rated Ally . | . . Total Orders . | . . Ally Attacks . | . . Total Damage . | . . Kills . | . . Allies Corrupted . | . . Allies Melted . | . . Intel | -11 -10 ------- Run | Scr Mat Robot Analysis Total . | . . Derelict Logs Recovered . | . . Drone Launches . | . . Drone Recoveries . | . . Exploration | -11 -10 ------------- Run | Scr Mat Turns Passed 1523 | 78 1445 Spaces Moved 982 | 54 928 Core 5 | 5 . Treads . | . . Legs 977 | 49 928 Wheels . | . . Hover . | . . Flight . | . . Fastest Speed 50 | 50 120 Average Speed 125 | 113 125 Slowest Speed 150 | 120 150 Overloaded Moves . | . . Propulsion Burnouts . | . . Robots Hopped . | . . Cave-ins Triggered . | . . Exploration Rate (%) 50 | 4 96 Regions Visited 1 Branch Regions . Pre-discovered Areas . | . . Known Exits Taken . | . . Unknown Exits Taken 1 | 1 . Scrap Searched . | . . Spaces Dug . | . . Terrain Destroyed . | . . Melee . | . . Projectile . | . . AOE . | . . Actions | -11 -10 --------- Run | Scr Mat Total 1136 | 63 1073 Wait 3 | . 3 Move 981 | 53 928 Hop . | . . Pick Up 15 | 1 14 Fast Attach 12 | 6 6 Attach 6 | . 6 Detach . | . . Swap 8 | . 8 Drop 8 | . 8 Fire 97 | 3 94 Melee 1 | . 1 Ram . | . . Kick 5 | . 5 Crush . | . . Escape Stasis . | . . Rewire . | . . Trap . | . . Miscellaneous . | . . Route ------- -11/Scrapyard -10/Materials (discovered 3 exits: [*Mat x2] / [*Min]) History --------- Turn | Location | Event 5 | -11/Scrapyard | Discovered new exit (range 15) 79 | -11/Scrapyard | Entered Materials 341 | -10/Materials | Build established: Mutant 351 | -10/Materials | Discovered new exit (range 9) 647 | -10/Materials | Discovered new exit (range 16) 818 | -10/Materials | Core integrity fell below 50% 890 | -10/Materials | Core integrity fell below 20% 908 | -10/Materials | Discovered new exit (range 15) 931 | -10/Materials | Lost 6 parts (1p1n4w) 1524 | -10/Materials | Destroyed by G-47 Trooper with Particle Gun Last Messages --------------- 01197_ K-01 Serf destroyed. 01210_ G-47 Trooper destroyed. 01213_ Acquired 22 matter. 01224_ Acquired 28 matter. 01226_ Acquired Lgt. Nuclear Core. 01241_ Destroyed Sml. Matter Pod. 01245_ K-01 Serf destroyed. 01248_ Acquired 10 matter. 01271_ Slammed into T-07 Excavator. 01292_ Slammed into K-01 Serf. 01355_ K-01 Serf cleans the Material Processor. 01475_ Triggered Alarm Trap. 01475_ An alarm sounds. 01475_ ALERT: Alarm triggered, dispatching investigation squad. 01479_ G-34 Mercenary destroyed. 01504_ Triggered Alarm Trap. 01504_ An alarm sounds. 01504_ ALERT: Alarm triggered, dispatching investigation squad. 01516_ G-34 Mercenary destroyed. 01519_ Welding Torch destroyed. Map ----- +----------------------------------------------------+ | #???????????????????????????????? | | #???????????????????????????????? | | #???????????????????????????????? | | #???????????????????????????????? | | #???????????????????????????????? | | #???????????????????????? ????? | | ????????????????????????? #???? | | ????????????????????????? = #???? | | ????????????????????????#*% #???? | | ????????????????????????#=[ #???? | | ????????????????????????#%[=#???? | | ????????????????????????#=*[#???? | | ????????????????????????# %*#???? | | ????????????????????????#g= #???? | | ????????????????????????#=%g#???? | | ????????????????????????# #???? | | ????????????????????????# #???? | | ????????????????????????# #???? | | ????????????????????????# #???? | | ???##############???????# #???? | | #### # #???????# #???? | | # #???????# #???? | | " #???????# #???? | | # #???????# #???? | | #### # #####???# #???? | | ???## #### # #???#@ #???? | | ????# #??# + #???# #???? | | ????# #??# # #???# #???? | | ????# #??# # #???# #???? | | ????# #??# # #???# #???? | | ????# #??# # #??## ##??? | | ????# #??# # #### #??? | | ????# #??# + #??? | | ????# #??######## #??? | | ??### #?????????# #??? | | ??# #??######## % #### #??? | | ??# #??# !#% %###########?? | | ??# #??#""" [# # """"" #?? | | ### #??#""" + + ""T"" #?? | | #??#""" # # #?? | | #??# # # ] #?? | | #??# "T" # ###########?? | | ########### ########????? | | ## ## # #????? | | ### ## !! ## # """ #????? | | #?# ## !! ## # "Y" #????? | | #?# ## ## # #????? | | #?# ## ## # #????? | | ### ## ## #? ?????? | | ## ###+###### % ####+####???? | +----------------------------------------------------+ Best States ------------- Heat Dissipation 25 Energy Generation 14 Energy Capacity 250 Matter Stores 300 Matter Capacity 300 Sight Range 16 Robot Scan Range 10 Terrain Scan Density 10 Evasion (%) 40 Item Schematics ----------------- None Robot Schematics ------------------ None Fabricated ------------ Nothing Alien Tech Used ----------------- None Achievements -------------- None Challenges ------------ None Game ------ Seed MediumAngularCarapace Manual? 0 Play Time 00:17:25 Cumulative 13.9 hours Start 2019.11.12 @ 20:45:07 End 2019.11.12 @ 20:57:56 Sessions 1 Manual Loads 0 Difficulty Rogue Special Mode None Game No. 38 Rogue 38 Adventurer 0 Explorer 0 Win Type - Total 0 Types 0/0/0/0/0/0/0 Lore% 7 Gallery% 18 Achievement% 12 Wizard Run 0 Options --------- ASCII 0 Keyboard 1 Movement Numpad Keybinds 0 Fullscreen 1 Font 18/SmallcapsGlow Map View 76x50 Tactical HUD 1 Map Filters NONE Filters NONE Steam 1 RUN: e88a1377-131b-4e19-b3ea-7e1b7acac193